bitfinex-derivatives/quotes_SOLF0:USTF0_20250413
["timestamp","ask_amount","ask_price","bid_price","bid_amount"]
[1744508184839,19.16838296,132.74,132.67,1.963]
[1744508185035,51.76838296,132.74,132.67,1.963]
[1744508185236,19.16838296,132.72,132.67,1.963]
[1744508185439,59.30358296,132.74,132.7,7.537]
[1744508185736,0.05616438,132.71,132.68,0.0522031]
[1744508186040,0.05616438,132.71,132.68,0.05332318]
[1744508188942,32.62,132.78,132.76,7.5336]
[1744508189342,32.62,132.81,132.72,51.78838296]
[1744508189541,32.62,132.81,132.78,7.5322]
[1744508190043,32.67734605,132.81,132.78,0.05507109]
[1744508190340,0.05734605,132.81,132.78,0.05507109]
[1744508190541,0.05734605,132.81,132.8,7.5314]
[1744508191046,0.05734605,132.81,132.78,0.05507109]
[1744508191343,32.62,132.8,132.78,0.05507109]
[1744508193139,32.62,132.8,132.71,1.9448]
[1744508193336,19.16838296,132.78,132.71,1.9448]
[1744508193540,19.16838296,132.76,132.65,32.62]
[1744508193741,19.16838296,132.74,132.65,32.62]
[1744508194045,7.5356,132.73,132.69,7.5373]
[1744508194446,0.05454517,132.72,132.7,0.05381069]
[1744508197550,0.05454517,132.72,132.7,7.59071069]
[1744508197747,7.5396,132.66,132.55,358.0]
[1744508198045,32.62,132.66,132.59,19.16838296]
[1744508198250,32.62,132.66,132.65,7.5399]
[1744508198653,19.16838296,132.69,132.57,23.28458296]
[1744508198845,19.22483982,132.67,132.64,7.59478038]
[1744508199146,32.62,132.66,132.64,7.59478038]
[1744508199351,32.62,132.66,132.64,0.05458038]
[1744508199750,40.1598,132.66,132.64,0.05458038]
[1744508199952,32.62,132.66,132.64,0.05458038]
[1744508201250,51.8396607,132.66,132.64,0.05458038]
[1744508201953,59.3794607,132.66,132.64,0.05458038]
[1744508203356,51.8396607,132.66,132.64,0.05458038]
[1744508203556,32.62,132.66,132.64,0.05458038]
[1744508203961,0.05643323,132.67,132.66,7.5394]
[1744508204162,32.64,132.69,132.65,2.0739]
[1744508204358,32.64,132.69,132.65,4.1875]
[1744508204553,32.64,132.69,132.66,7.5388]
[1744508204755,32.64,132.69,132.65,4.1875]
[1744508204957,596.66,132.71,132.65,4.1875]
[1744508205160,596.66,132.71,132.7,7.5371]
[1744508205857,32.69569944,132.72,132.71,7.5365]
[1744508206552,0.05569944,132.72,132.71,7.5365]
[1744508208363,0.05569944,132.72,132.7,0.05660094]
[1744508208662,32.62,132.71,132.7,0.05660094]
[1744508209164,32.62,132.71,132.65,2.0739]
[1744508209661,40.1569,132.71,132.67,7.5385]
[1744508209862,32.62,132.71,132.65,2.0739]
[1744508210263,0.05090216,132.69,132.67,7.58772793]
[1744508210863,0.05090216,132.69,132.68,7.5382]
[1744508211474,32.62,132.74,132.67,0.04942793]
[1744508211661,32.62,132.75,132.66,19.2196607]
[1744508212264,19.2196607,132.74,132.65,2.0739]
[1744508212660,0.04974737,132.71,132.68,0.0561667]
[1744508213164,0.04974737,132.71,132.7,7.5371]
[1744508213463,32.62,132.75,132.68,0.0561667]
[1744508213664,623.6723607,132.78,132.74,7.5343]
[1744508213964,32.62,132.76,132.74,7.5343]
[1744508214165,32.62,132.76,132.69,3.9577]
[1744508214353,32.62,132.76,132.73,7.535]
[1744508214559,32.66864309,132.76,132.69,3.9577]
[1744508214766,32.66864309,132.76,132.73,0.05060885]
[1744508214966,32.66864309,132.76,132.74,7.5344]
[1744508216168,32.66864309,132.76,132.73,0.05060885]
[1744508216169,32.66864309,132.76,132.73,7.58580885]
[1744508216563,32.66864309,132.76,132.73,0.05060885]
[1744508216861,0.04864309,132.76,132.75,7.5343]
[1744508217665,32.62,132.79,132.75,7.5343]
[1744508217965,32.62,132.79,132.72,32.62]
[1744508218265,32.62,132.79,132.7,19.2196607]
[1744508218661,40.1524,132.79,132.7,19.2196607]
[1744508218869,0.05087535,132.76,132.73,0.055048]
[1744508219168,0.05087535,132.76,132.73,7.590048]
[1744508219970,0.05087535,132.76,132.73,0.055048]
[1744508220466,0.05087535,132.76,132.73,7.590048]
[1744508220663,0.05087535,132.76,132.73,0.055048]
[1744508220966,0.05087535,132.76,132.74,7.5348]
[1744508221166,32.62,132.82,132.74,19.2196607]
[1744508221358,32.62,132.82,132.74,11.79249819]
[1744508221563,44.41249819,132.82,132.71,2.1014]
[1744508221758,11.79249819,132.79,132.71,2.1014]
[1744508221965,32.62,132.78,132.71,2.1014]
[1744508222168,7.5336,132.77,132.72,7.5354]
[1744508222370,32.62,132.78,132.73,0.05393913]
[1744508222667,7.5345,132.75,132.73,0.05393913]
[1744508222864,11.79249819,132.77,132.73,0.05393913]
[1744508223269,7.5348,132.74,132.73,0.05393913]
[1744508223867,32.62,132.78,132.73,0.05393913]
[1744508224069,22.61,132.72,132.59,26.50024527]
[1744508224265,11.79249819,132.64,132.59,26.50024527]
[1744508224568,11.79249819,132.61,132.56,121.66728557]
[1744508224769,11.79249819,132.57,132.51,2.0366]
[1744508224967,40.1651,132.56,132.55,26.53630684]
[1744508225172,40.1651,132.56,132.55,26.59060409]
[1744508225763,59.40963678,132.56,132.55,26.59060409]
[1744508225966,59.40963678,132.56,132.54,70.76348491]
[1744508225967,7.5456,132.55,132.54,70.76348491]
[1744508226168,656.14453678,132.56,132.53,106.14522737]
[1744508226367,19.24453678,132.54,132.53,106.14522737]
[1744508226572,26.79073678,132.54,132.53,106.14522737]
[1744508226971,19.24453678,132.54,132.53,106.14522737]
[1744508227775,19.24453678,132.54,132.52,176.95690336]
[1744508227776,174.67806688,132.54,132.52,0.04819108]
[1744508228175,174.7326091,132.54,132.52,0.04819108]
[1744508228774,193.97714588,132.54,132.52,0.04819108]
[1744508229674,180.95009806,132.53,132.52,0.04819108]
[1744508230575,213.59009806,132.53,132.52,0.04819108]
[1744508231476,32.64,132.53,132.52,0.04819108]
[1744508231877,0.05454222,132.54,132.52,0.04819108]
[1744508232077,32.64,132.53,132.52,0.04819108]
[1744508234173,19.299079,132.54,132.45,3.9792]
[1744508234374,32.66,132.53,132.45,3.9792]
[1744508234780,40.2068,132.53,132.47,7.5498]
[1744508234980,32.66,132.53,132.45,3.9792]
[1744508235381,0.05719782,132.5,132.48,0.04965091]
[1744508235682,32.66,132.49,132.48,0.04965091]
[1744508235879,40.209,132.49,132.48,0.04965091]
[1744508236381,0.05719782,132.5,132.48,0.04965091]
[1744508236582,32.66,132.49,132.48,0.04965091]
[1744508236975,40.209,132.49,132.48,0.04965091]
[1744508237175,32.66,132.49,132.38,6.2021]
[1744508237381,19.24453678,132.46,132.38,4.1872]
[1744508237581,40.2115,132.45,132.39,7.5544]
[1744508237784,32.66,132.45,132.38,4.1872]
[1744508237984,32.66,132.44,132.42,7.5526]
[1744508238181,597.5,132.48,132.42,0.05050949]
[1744508238485,0.05554952,132.44,132.42,0.05050949]
[1744508238784,630.08,132.48,132.47,7.5502]
[1744508239585,630.08,132.48,132.42,2.0505]
[1744508239881,630.08,132.48,132.46,0.05561434]
[1744508240378,649.37221515,132.48,132.46,0.05561434]
[1744508240586,649.37221515,132.48,132.38,6.2377]
[1744508240775,649.32453678,132.48,132.41,7.5536]
[1744508240974,19.24453678,132.45,132.38,6.2377]
[1744508241181,19.24453678,132.43,132.38,7.5549]
[1744508241382,32.58,132.42,132.32,19.24453678]
[1744508241784,32.58,132.42,132.38,7.555]
[1744508242281,0.0504946,132.41,132.39,0.0574404]
[1744508244192,597.8,132.4,132.39,0.0574404]
[1744508244482,630.38,132.4,132.39,0.0574404]
[1744508246993,630.38,132.4,132.31,5.9901]
[1744508247193,19.24453678,132.38,132.31,5.9901]
[1744508247390,11.87556039,132.39,132.31,5.9901]
[1744508248293,0.05750836,132.36,132.34,0.05610184]
[1744508248494,32.6,132.35,132.34,0.05610184]
[1744508249087,0.05750836,132.36,132.34,0.05610184]
[1744508249292,32.6,132.35,132.34,0.05610184]
[1744508249690,32.6,132.35,132.34,7.61360184]
[1744508250195,29.3675,132.35,132.34,7.61360184]
[1744508250892,29.3675,132.35,132.34,0.05610184]
[1744508251293,29.3675,132.35,132.34,7.61370184]
[1744508251695,29.3675,132.35,132.34,0.05610184]
[1744508251995,29.3675,132.35,132.33,7.5578]
[1744508252491,29.3675,132.35,132.31,5.9901]
[1744508253195,29.3675,132.35,132.33,7.5582]
[1744508253395,29.3675,132.35,132.32,0.05271451]
[1744508254098,29.3675,132.35,132.33,7.5582]
[1744508254299,29.3675,132.35,132.32,0.05271451]
[1744508254695,11.87556039,132.33,132.21,1.31536673]
[1744508254896,11.87556039,132.33,132.22,13.97246039]
[1744508255098,11.87556039,132.31,132.22,2.0969]
[1744508255297,32.62,132.3,132.22,2.0969]
[1744508255495,32.62,132.3,132.19,11.87556039]
[1744508255496,11.87556039,132.27,132.17,4.1101]
[1744508255691,0.05277658,132.23,132.22,7.5641]
[1744508255894,0.05277658,132.23,132.21,0.05506524]
[1744508255895,11.87556039,132.25,132.21,0.05506524]
[1744508256095,32.66869018,132.24,132.21,0.05506524]
[1744508256290,0.04869018,132.24,132.21,7.61966524]
[1744508256501,32.62,132.23,132.21,7.61966524]
[1744508256698,32.62,132.22,132.21,0.05506524]
[1744508257998,625.23318265,132.24,132.21,0.05506524]
[1744508257999,598.32869018,132.24,132.21,0.05506524]
[1744508258198,32.62,132.23,132.21,0.05506524]
[1744508258603,51.96069247,132.22,132.21,0.05506524]
[1744508258799,51.96069247,132.22,132.12,32.62]
[1744508258996,19.34069247,132.2,132.12,32.62]
[1744508259597,51.96069247,132.22,132.12,32.62]
[1744508259993,5.923e-05,132.18,132.16,0.05415663]
[1744508260204,598.28,132.24,132.16,0.05415663]
[1744508260205,51.98069247,132.3,132.17,19.34069247]
[1744508260405,32.64,132.3,132.2,19.34069247]
[1744508260602,32.64,132.3,132.21,34.6864]
[1744508260801,51.98069247,132.3,132.21,34.6864]
[1744508261001,19.34069247,132.28,132.21,2.0464]
[1744508261295,0.05032104,132.27,132.24,0.04801073]
[1744508261501,0.05032104,132.27,132.25,7.5627]
[1744508261703,0.05032104,132.27,132.24,0.04801073]
[1744508262000,32.64,132.26,132.24,0.04801073]
[1744508262199,51.98069247,132.26,132.24,0.04801073]
[1744508263002,19.34069247,132.25,132.13,358.0]
[1744508263204,19.34069247,132.21,132.18,7.5663]
[1744508263404,32.64,132.2,132.18,7.5663]
[1744508264002,32.69733794,132.2,132.18,7.6207852]
[1744508264803,19.34069247,132.19,132.18,0.0544852]
[1744508265197,32.69733794,132.2,132.18,7.6209852]
[1744508266306,32.69733794,132.2,132.19,7.5662]
[1744508266906,32.69733794,132.2,132.18,7.6210852]
[1744508267107,32.69733794,132.2,132.18,0.0544852]
[1744508267304,26.90689247,132.19,132.18,0.0544852]
[1744508267902,19.34069247,132.19,132.18,0.0544852]
[1744508268507,26.90689247,132.19,132.18,0.0544852]
[1744508268708,26.90689247,132.19,132.12,2.0516]
[1744508268909,19.34069247,132.17,132.16,7.5679]
[1744508269109,32.86,132.18,132.12,2.0516]
[1744508269410,32.86,132.18,132.17,7.5673]
[1744508269608,32.86,132.18,132.12,2.0516]
[1744508269810,32.86,132.18,132.16,0.05606319]
[1744508270003,52.20069247,132.21,132.16,0.05606319]
[1744508270306,0.0514827,132.18,132.16,0.05606319]
[1744508270506,32.86,132.21,132.16,0.05606319]
[1744508270714,32.86,132.24,132.16,32.91606319]
[1744508270913,32.86,132.24,132.17,2.0845]
[1744508271415,598.78,132.25,132.18,19.34069247]
[1744508271716,0.05091544,132.22,132.21,7.565]
[1744508271913,32.91091544,132.22,132.19,2.0986]
[1744508272121,32.91091544,132.22,132.2,0.04889752]
[1744508272420,26.44371544,132.22,132.21,7.565]
[1744508272721,26.44371544,132.22,132.2,0.04889752]
[1744508273316,26.44371544,132.22,132.21,7.565]
[1744508273821,26.44371544,132.22,132.2,0.04889752]
[1744508275018,26.44371544,132.22,132.2,7.61439752]
[1744508275721,26.44371544,132.22,132.2,0.04889752]
[1744508277925,26.44371544,132.22,132.2,7.61409752]
[1744508278721,26.44371544,132.22,132.21,7.565]
[1744508279427,26.44371544,132.22,132.2,7.61439752]
[1744508279725,26.44371544,132.22,132.2,0.04889752]
[1744508279929,26.44371544,132.22,132.21,7.565]
[1744508280324,0.0481184,132.23,132.2,0.04889752]
[1744508280521,0.0481184,132.23,132.22,7.5645]
[1744508282226,598.78,132.25,132.2,0.04889752]
[1744508282526,11.90195391,132.24,132.2,0.04889752]
[1744508282725,11.90195391,132.22,132.2,0.04889752]
[1744508283028,32.86,132.21,132.2,0.04889752]
[1744508283225,34.9928,132.3,132.2,11.95085143]
[1744508283428,32.86,132.3,132.22,11.90195391]
[1744508283626,32.86,132.3,132.22,44.76195391]
[1744508283827,32.86,132.3,132.29,7.5605]
[1744508284032,104.0996704,132.32,132.22,402.76195391]
[1744508284329,116.00162431,132.32,132.22,32.86]
[1744508284527,0.05805444,132.28,132.26,0.05478987]
[1744508284735,0.05805444,132.28,132.27,7.5616]
[1744508284928,32.86,132.3,132.26,0.05478987]
[1744508285628,32.86,132.3,132.29,7.5605]
[1744508285829,104.0996704,132.32,132.26,0.05478987]
[1744508286030,0.05605098,132.31,132.26,0.05478987]
[1744508286229,0.05605098,132.31,132.3,7.5599]
[1744508287634,52.1743707,132.37,132.29,0.04906475]
[1744508287836,19.3143707,132.35,132.28,2.0789]
[1744508288135,19.3143707,132.33,132.27,1.9422]
[1744508288331,19.3143707,132.31,132.23,32.86]
[1744508288537,19.3143707,132.29,132.28,7.561]
[1744508288738,0.05042129,132.28,132.26,0.05254512]
[1744508288927,19.3143707,132.31,132.26,0.05254512]
[1744508289126,0.05238937,132.28,132.27,7.5616]
[1744508289928,0.05238937,132.28,132.26,0.05254512]
[1744508290333,0.05238937,132.28,132.26,7.61464512]
[1744508291533,0.05238937,132.28,132.18,19.3143707]
[1744508291534,19.3143707,132.27,132.12,358.0]
[1744508291737,19.3143707,132.23,132.13,4.2623]
[1744508292036,52.1743707,132.23,132.13,4.2623]
[1744508292237,52.1743707,132.23,132.18,7.5665]
[1744508292734,0.05552464,132.22,132.19,0.05692049]
[1744508292939,52.1743707,132.23,132.19,0.05692049]
[1744508293238,0.05448499,132.22,132.19,0.05692049]
[1744508296741,0.05448499,132.22,132.2,7.5652]
[1744508297241,0.05448499,132.22,132.21,7.565]
[1744508297446,0.05448499,132.22,132.2,2.1225]
[1744508297741,0.05448499,132.22,132.2,7.5656]
[1744508298038,0.05448499,132.22,132.19,0.05692049]
[1744508299446,19.3143707,132.2,132.19,0.05692049]
[1744508300244,30.05155612,132.2,132.19,0.05692049]
[1744508301344,19.3143707,132.2,132.19,0.05692049]
[1744508301543,19.36885569,132.22,132.19,0.05692049]
[1744508301849,26.93335569,132.22,132.19,0.05692049]
[1744508302041,19.36885569,132.22,132.19,0.05692049]
[1744508302443,19.3143707,132.2,132.19,0.05692049]
[1744508302642,19.3143707,132.2,132.13,1.997]
[1744508302643,22.48634072,132.2,132.13,1.997]
[1744508302843,19.3143707,132.17,132.13,1.997]
[1744508303243,19.3143707,132.15,132.1,2.091]
[1744508303644,52.7143707,132.17,132.1,2.091]
[1744508303844,0.05611587,132.14,132.11,0.0488115]
[1744508304147,0.05611587,132.14,132.13,7.5696]
[1744508304543,0.05611587,132.14,132.11,0.0488115]
[1744508304745,0.05611587,132.14,132.12,7.5699]
[1744508305049,0.05611587,132.14,132.11,0.0488115]
[1744508305349,0.05611587,132.14,132.13,7.5696]
[1744508305951,19.3143707,132.19,132.11,0.0488115]
[1744508306149,33.4,132.2,132.1,21.4053707]
[1744508306652,33.4,132.23,132.14,19.3143707]
[1744508306850,33.4,132.23,132.15,35.4267]
[1744508307248,0.05234546,132.2,132.18,0.05214973]
[1744508307752,0.05234546,132.2,132.19,7.5662]
[1744508308852,632.34,132.26,132.18,0.05214973]
[1744508309055,33.4,132.26,132.19,33.4]
[1744508309349,45.30096497,132.3,132.19,33.4]
[1744508309553,45.30096497,132.3,132.2,11.90096497]
[1744508310054,0.05309283,132.26,132.24,0.05235477]
[1744508310651,0.05309283,132.26,132.25,7.5627]
[1744508311755,0.05309283,132.26,132.24,7.61545477]
[1744508311954,0.05309283,132.26,132.24,0.05235477]
[1744508312149,52.9163578,132.26,132.24,0.05235477]
[1744508312349,45.3540578,132.26,132.24,0.05235477]
[1744508312547,33.45309283,132.26,132.24,0.05235477]
[1744508312856,33.45309283,132.26,132.25,7.5627]
[1744508313055,0.05309283,132.26,132.25,7.5627]
[1744508314957,33.4,132.29,132.28,7.561]
[1744508315146,35.5317,132.32,132.24,33.4]
[1744508315347,35.5317,132.32,132.24,45.30096497]
[1744508315655,33.4,132.35,132.24,45.30096497]
[1744508315856,3.17594318,132.34,132.24,45.30096497]
[1744508316057,33.4,132.35,132.31,7.5589]
[1744508316360,0.05731998,132.34,132.31,7.5589]
[1744508316559,0.05731998,132.34,132.32,0.04966792]
[1744508316754,40.9574,132.35,132.3,7.5597]
[1744508317060,0.05782864,132.34,132.32,0.05550189]
[1744508317756,7.5582,132.33,132.24,33.4]
[1744508317959,11.90096497,132.32,132.24,33.4]
[1744508318156,33.38,132.31,132.24,33.4]
[1744508318954,0.05659596,132.29,132.26,0.05380267]
[1744508319160,33.38,132.34,132.26,11.95476764]
[1744508319350,1.9998,132.36,132.28,11.90096497]
[1744508319557,1.9998,132.36,132.29,1.9827]
[1744508320060,1.9998,132.36,132.32,7.5583]
[1744508320261,1.9998,132.36,132.29,1.9827]
[1744508320460,0.05619889,132.35,132.33,0.047819]
[1744508320661,0.05619889,132.35,132.33,7.605619]
[1744508320860,0.05619889,132.35,132.33,0.047819]
[1744508321758,0.05619889,132.35,132.34,7.5576]
[1744508323561,0.05619889,132.35,132.33,7.605819]
[1744508323859,0.05619889,132.35,132.33,0.047819]
[1744508324962,0.05619889,132.35,132.34,7.5576]
[1744508325862,0.05619889,132.35,132.33,7.605819]
[1744508326462,11.95716386,132.35,132.33,0.047819]
[1744508326664,3.16560849,132.34,132.25,37.4026]
[1744508326962,11.90096497,132.32,132.25,4.0226]
[1744508327162,19.45986497,132.32,132.25,4.0226]
[1744508327764,0.05133228,132.3,132.28,7.5605]
[1744508328165,0.05133228,132.3,132.29,7.5605]
[1744508328662,0.05133228,132.3,132.27,0.05390925]
[1744508328863,11.95229725,132.3,132.27,0.05390925]
[1744508329059,33.38,132.29,132.27,0.05390925]
[1744508329456,11.90096497,132.28,132.27,0.05390925]
[1744508329661,11.90096497,132.28,132.2,2.0268]
[1744508330065,19.46206497,132.28,132.24,7.5631]
[1744508330264,11.90096497,132.28,132.2,2.0268]
[1744508330569,11.90096497,132.26,132.2,2.0268]
[1744508330863,32.75120369,132.25,132.23,0.05635057]
[1744508332360,40.31410369,132.25,132.23,0.05635057]
[1744508335265,7.5633,132.24,132.23,0.05635057]
[1744508335465,32.75120369,132.25,132.23,0.05635057]
[1744508336766,40.31450369,132.25,132.23,0.05635057]
[1744508337066,32.75120369,132.25,132.23,0.05635057]
[1744508338963,40.31420369,132.25,132.23,0.05635057]
[1744508339265,32.75120369,132.25,132.23,0.05635057]
[1744508339567,40.31430369,132.25,132.23,0.05635057]
[1744508339966,7.61430369,132.25,132.23,0.05635057]
[1744508340265,32.72,132.24,132.23,0.05635057]
[1744508341963,0.05120369,132.25,132.23,0.05635057]
[1744508342565,0.05120369,132.25,132.24,7.5633]
[1744508343462,32.72,132.27,132.26,7.5622]
[1744508343657,32.72,132.27,132.23,0.05635057]
[1744508343862,32.72,132.27,132.25,7.5622]
[1744508344059,32.72,132.27,132.23,0.05635057]
[1744508344368,7.5594,132.31,132.27,7.5615]
[1744508344565,0.05449048,132.26,132.22,11.90096497]
[1744508344764,32.77026916,132.3,132.28,0.05086549]
[1744508344969,32.72,132.3,132.22,11.90096497]
[1744508345267,44.62096497,132.3,132.21,4.2495]
[1744508345471,7.6113751,132.27,132.25,0.05544842]
[1744508345663,32.72,132.26,132.25,0.05544842]
[1744508346666,52.18316497,132.26,132.25,0.05544842]
[1744508346868,44.62096497,132.26,132.25,0.05544842]
[1744508347065,32.72,132.26,132.25,0.05544842]
[1744508347969,40.2822,132.26,132.25,0.05544842]
[1744508348769,52.18316497,132.26,132.25,0.05544842]
[1744508349070,55.36263726,132.26,132.25,0.05544842]
[1744508349669,55.36429117,132.26,132.25,0.05544842]
[1744508350071,47.80209117,132.26,132.14,32.72]
[1744508350272,11.90096497,132.23,132.14,36.7488]
[1744508350570,1.31648634,132.27,132.22,11.90096497]
[1744508350774,4.0529,132.35,132.24,11.90096497]
[1744508350972,3.18537996,132.34,132.24,32.72]
[1744508351273,0.05607732,132.31,132.28,0.0573537]
[1744508351662,0.05607732,132.31,132.29,7.5599]
[1744508351867,0.05607732,132.31,132.28,0.0573537]
[1744508352073,0.05607732,132.31,132.3,7.5599]
[1744508352268,32.72,132.36,132.29,2.1555]
[1744508352469,3.18920909,132.35,132.29,2.1555]
[1744508353161,10.74690909,132.34,132.3,7.5595]
[1744508353366,0.04998081,132.33,132.3,7.5595]
[1744508353562,0.04998081,132.33,132.31,0.04851253]
[1744508353774,40.2587,132.32,132.31,0.04851253]
[1744508353971,35.88908311,132.32,132.31,0.04851253]
[1744508354164,32.7,132.32,132.31,0.04851253]
[1744508354472,35.8893769,132.32,132.31,0.04851253]
[1744508354667,32.7,132.32,132.31,0.04851253]
[1744508354871,35.88926572,132.32,132.31,0.04851253]
[1744508355067,32.7,132.32,132.31,0.04851253]
[1744508355274,47.79044118,132.32,132.31,0.04851253]
[1744508355875,55.34914118,132.32,132.31,0.04851253]
[1744508356075,47.79044118,132.32,132.31,0.04851253]
[1744508358173,35.88947621,132.32,132.31,0.04851253]
[1744508358376,35.89157836,132.32,132.31,0.04851253]
[1744508358676,32.7,132.32,132.31,7.60781253]
[1744508359678,0.04998081,132.33,132.32,7.5587]
[1744508362170,3.19366426,132.35,132.34,7.5576]
[1744508362380,32.98,132.38,132.32,1.9979]
[1744508362579,3.19397554,132.37,132.32,1.9979]
[1744508362779,3.19397554,132.36,132.35,7.5567]
[1744508363177,3.19397554,132.36,132.32,1.9979]
[1744508363380,0.05043872,132.37,132.34,7.60732359]
[1744508363578,3.19494894,132.36,132.34,0.05012359]
[1744508363980,3.19494894,132.36,132.35,7.5566]
[1744508364182,0.05043872,132.37,132.34,0.05012359]
[1744508365183,0.05043872,132.37,132.35,7.557]
[1744508365384,0.05043872,132.37,132.34,0.05012359]
[1744508365784,0.05043872,132.37,132.36,7.5565]
[1744508367581,3.1946616,132.4,132.34,33.03012359]
[1744508367981,3.1946616,132.4,132.37,7.5557]
[1744508368184,3.1946616,132.4,132.34,32.98]
[1744508368486,11.90096497,132.36,132.32,1.9979]
[1744508368686,44.88096497,132.36,132.32,1.9979]
[1744508368882,40.5367,132.36,132.33,0.05097732]
[1744508369081,52.43766497,132.36,132.33,0.05097732]
[1744508369287,3.19324842,132.35,132.33,0.05097732]
[1744508369786,32.98,132.36,132.33,7.60897732]
[1744508370187,40.5368,132.36,132.33,7.60897732]
[1744508370389,40.5368,132.36,132.33,0.05097732]
[1744508371789,32.98,132.36,132.33,7.60907732]
[1744508372386,32.98,132.36,132.34,7.5576]
[1744508372593,600.29544132,132.41,132.33,0.05097732]
[1744508372789,3.19137463,132.4,132.34,11.90096497]
[1744508373088,3.19137463,132.4,132.36,0.05683957]
[1744508373887,11.90096497,132.37,132.36,0.05683957]
[1744508374089,59.95330457,132.37,132.28,2.0541]
[1744508374288,11.90096497,132.32,132.23,4.0222]
[1744508374489,32.96,132.31,132.24,2.0541]
[1744508374691,32.96,132.31,132.28,7.561]
[1744508374990,32.96,132.31,132.24,2.0541]
[1744508375289,40.5680486,132.31,132.28,0.05429211]
[1744508375684,7.5601,132.3,132.28,0.05429211]
[1744508376890,40.5682486,132.31,132.28,0.05429211]
[1744508377992,33.0087486,132.31,132.28,0.05429211]
[1744508378188,15.08902231,132.3,132.23,2.0416]
[1744508378391,32.96,132.31,132.23,2.0416]
[1744508378591,3.18867609,132.3,132.27,7.5614]
[1744508379295,32.96,132.31,132.27,7.5614]
[1744508379492,3.23701665,132.3,132.28,7.561]
[1744508379692,0.04786832,132.3,132.27,0.05590442]
[1744508380092,0.04786832,132.3,132.29,7.5605]
[1744508380689,0.04786832,132.3,132.28,7.5609]
[1744508380993,0.04786832,132.3,132.27,0.05590442]
[1744508381198,0.04786832,132.3,132.29,7.5605]
[1744508381494,0.04786832,132.3,132.27,0.05590442]
[1744508381689,0.04786832,132.3,132.27,7.61730442]
[1744508381885,48.11816788,132.3,132.27,0.05590442]
[1744508382093,3.18933459,132.29,132.27,0.05590442]
[1744508382294,7.5629,132.25,132.21,9.535]
[1744508382495,40.5429,132.25,132.21,9.535]
[1744508382995,32.98,132.25,132.22,7.5642]
[1744508383198,15.0900297,132.24,132.16,2.0976]
[1744508383495,0.05617001,132.21,132.19,0.04947748]
[1744508385298,0.05617001,132.21,132.2,7.5656]
[1744508385502,0.05617001,132.21,132.19,0.04947748]
[1744508385796,33.03617001,132.21,132.19,0.04947748]
[1744508386897,40.60127001,132.21,132.19,0.04947748]
[1744508387106,33.03617001,132.21,132.19,0.04947748]
[1744508388398,47.03603498,132.21,132.13,6.2531]
[1744508388598,7.5664,132.19,132.15,7.5681]
[1744508389394,0.05675926,132.18,132.16,0.04962999]
[1744508390900,7.62355926,132.18,132.16,0.04962999]
[1744508392102,40.2673,132.17,132.16,0.04962999]
[1744508392504,32.7,132.17,132.16,0.04962999]
[1744508394307,40.2673,132.17,132.16,0.04962999]
[1744508397399,47.7142848,132.17,132.16,0.04962999]
[1744508399307,7.4469848,132.17,132.16,0.04962999]
[1744508399508,32.7,132.17,132.16,0.04962999]
[1744508399807,7.62385926,132.18,132.16,0.04962999]
[1744508399808,0.05675926,132.18,132.16,0.04962999]
[1744508400009,0.05675926,132.18,132.17,7.5673]
[1744508400604,0.05675926,132.18,132.16,7.61722999]
[1744508401098,0.05675926,132.18,132.16,0.04962999]
[1744508401299,11.97195942,132.18,132.09,2.0369]
[1744508401498,11.91520016,132.18,132.09,2.0369]
[1744508401709,11.91520016,132.16,132.1,7.5712]
[1744508401904,2.0989,132.21,132.1,7.5712]
[1744508401905,32.7,132.15,132.1,7.5712]
[1744508402105,32.7,132.15,132.09,2.0369]
[1744508402506,0.05667562,132.13,132.11,0.0535953]
[1744508403512,623.11040032,132.12,131.96,11.91520016]
[1744508403805,11.91520016,132.09,132.05,7.5738]
[1744508404015,11.91520016,132.06,131.97,6.0624]
[1744508404308,11.91520016,132.03,131.97,6.0624]
[1744508404509,0.05066134,132.01,132.0,7.577]
[1744508405011,32.72,132.05,131.99,0.05307462]
[1744508405406,11.91520016,132.09,131.99,0.05307462]
[1744508405607,32.72,132.08,131.98,11.91520016]
[1744508405806,11.91520016,132.07,131.97,6.0624]